[Event "Fagernes Open 2019"]
[Site "Fagernes"]
[Date "2019.04.18"]
[Round "1"]
[White "Lobersli, Henrik Oie"]
[Black "Lye, Sverre"]
[Result "1/2-1/2"]
[ECO "D78"]
[WhiteElo "2102"]
[BlackElo "1645"]
[Annotator "NA"]
[PlyCount "85"]
[EventDate "2019.04.14"]
[EventType "swiss"]
[EventCountry "NOR"]
[SourceTitle "playchess.com"]
[Source "ChessBase"]
[SourceQuality "1"]
[TimeControl "40/7200:3600"]

1. d4 {[%emt 0:00:09]} Nf6 {[%emt 0:00:12]} 2. c4 {[%emt 0:00:24]} g6 {[%emt 0:00:14]} 3. Nf3 {[%emt 0:00:28]} Bg7 {[%emt 0:00:17]} 4. g3 {[%emt 0:00:25]} O-O {[%emt 0:01:08]} 5. Bg2 {[%emt 0:00:17]} c6 {[%emt 0:02:20]} 6. O-O {[%emt 0:00:28]} d5 {[%emt 0:00:44]} 7. b3 {[%emt 0:00:46]} Bf5 {[%emt 0:03:35]} 8. Bb2 {[%emt 0:01:47]} Nbd7 {[%emt 0:00:53]} 9. Nc3 {[%emt 0:01:16]} Nb6 {[%emt 0:02:36]} 10. Nd2 {[%emt 0:08:42]} Rc8 {[%emt 0:03:50]} 11. Rc1 {[%emt 0:12:44]} Bh6 {[%emt 0:06:30]} 12. cxd5 {[%emt 0:05:19]} cxd5 {[%emt 0:04:59]} 13. e3 {[%emt 0:01:04]} a6 {[%emt 0:05:23]} 14. Nf3 {[%emt 0:08:06]} Qd6 {[%emt 0:02:25]} 15. Ne5 {[%emt 0:03:22]} Rc7 {[%emt 0:02:33]} 16. Qe2 {[%emt 0:33:33]} Rfc8 {[%emt 0:04:22]} 17. Nd3 {[%emt 0:00:31]} Nfd7 {[%emt 0:05:36]} 18. Nb1 {[%emt 0:02:47]} Rxc1 {[%emt 0:05:34]} 19. Rxc1 {[%emt 0:00:13]} Rxc1+ {[%emt 0:00:35]} 20. Bxc1 {[%emt 0:00:08]} Qc6 {[%emt 0:00:13]} 21. Ba3 {[%emt 0:01:59]} Qb5 {[%emt 0:07:37]} 22. Bf1 {[%emt 0:00:22]} Qxd3 {[%emt 0:02:45]} 23. Qxd3 {[%emt 0:00:07]} Bxd3 {[%emt 0:00:04]} 24. Bxd3 {[%emt 0:00:09]} Bf8 {[%emt 0:00:48]} 25. Kf1 {[%emt 0:10:09]} e6 {[%emt 0:00:41]} 26. Bxf8 {[%emt 0:01:08]} Kxf8 {[%emt 0:00:27]} 27. Ke2 {[%emt 0:01:08]} Ke7 {[%emt 0:00:35]} 28. Nd2 {[%emt 0:00:34]} f6 {[%emt 0:03:17]} 29. Bc2 {[%emt 0:05:08]} Kd6 {[%emt 0:02:22]} 30. Kd3 {[%emt 0:01:17]} f5 {[%emt 0:01:05]} 31. f3 {[%emt 0:02:39]} Nf6 {[%emt 0:00:28]} 32. e4 {[%emt 0:04:11]} dxe4+ {[%emt 0:04:50]} 33. fxe4 {[%emt 0:00:07]} fxe4+ {[%emt 0:01:23]} 34. Nxe4+ {[%emt 0:00:03]} Nxe4 {[%emt 0:00:14]} 35. Kxe4 {[%emt 0:00:06]} Nd5 {[%emt 0:00:08]} 36. a3 {[%emt 0:01:05]} g5 {[%emt 0:00:20]} 37. b4 {[%emt 0:03:38]} Nf6+ {[%emt 0:01:30]} 38. Kf3 {[%emt 0:01:32]} h6 {[%emt 0:00:29]} 39. h4 {[%emt 0:00:48]} b6 {[%emt 0:00:23]} 40. hxg5 {[%emt 0:00:54]} hxg5 {[%emt 0:00:08]} 41. Bd3 {[%emt 0:12:19]} a5 {[%emt 0:09:43]} 42. bxa5 {[%emt 0:04:18]} bxa5 {[%emt 0:00:06]} 43. Bc4 {[%emt 0:00:34]} 1/2-1/2

[Event "Fagernes Open 2019"]
[Site "Fagernes"]
[Date "2019.04.18"]
[Round "1"]
[White "Shehzad, Shazil"]
[Black "Granum, Roger"]
[Result "1-0"]
[ECO "B30"]
[WhiteElo "2024"]
[BlackElo "1628"]
[Annotator "NA"]
[PlyCount "51"]
[EventDate "2019.04.14"]
[EventType "swiss"]
[EventCountry "NOR"]
[SourceTitle "playchess.com"]
[Source "ChessBase"]
[SourceQuality "1"]
[TimeControl "40/7200:3600"]

1. e4 {[%emt 0:00:02]} c5 {[%emt 0:00:10]} 2. Nf3 {[%emt 0:00:03]} Nc6 {[%emt 0:00:14]} 3. Bb5 {[%emt 0:00:08]} Qc7 {[%emt 0:00:49]} 4. O-O {[%emt 0:00:22]} e6 {[%emt 0:00:45]} 5. c3 {[%emt 0:00:51]} Be7 {[%emt 0:01:57]} 6. d4 {[%emt 0:00:37]} cxd4 {[%emt 0:03:11]} 7. cxd4 {[%emt 0:00:07]} Nf6 {[%emt 0:00:48]} 8. d5 {[%emt 0:01:06]} Ne5 {[%emt 0:01:40]} 9. Bf4 {[%emt 0:07:06]} Nxf3+ {[%emt 0:00:46]} 10. Qxf3 {[%emt 0:01:12]} e5 {[%emt 0:01:40]} 11. Be3 {[%emt 0:05:34]} O-O {[%emt 0:02:56]} 12. Rc1 {[%emt 0:01:58]} Qd8 {[%emt 0:00:40]} 13. a4 {[%emt 0:02:14]} d6 {[%emt 0:00:53]} 14. a5 {[%emt 0:01:26]} Bd7 {[%emt 0:03:08]} 15. Bxd7 {[%emt 0:01:15]} Qxd7 {[%emt 0:01:03]} 16. Nc3 {[%emt 0:01:30]} Ng4 {[%emt 0:01:46]} 17. Bd2 {[%emt 0:02:17]} Rac8 {[%emt 0:07:10]} 18. h3 {[%emt 0:01:02]} Nf6 {[%emt 0:00:19]} 19. Qd3 {[%emt 0:01:03]} a6 {[%emt 0:08:56]} 20. b4 {[%emt 0:02:08]} Nh5 {[%emt 0:01:44]} 21. Be3 {[%emt 0:04:01]} f5 {[%emt 0:06:44]} 22. exf5 {[%emt 0:03:11]} Rxf5 {[%emt 0:01:06]} 23. g4 {[%emt 0:01:35]} Nf4 {[%emt 0:00:02]} 24. Qxf5 {[%emt 0:00:17]} Qxf5 25. gxf5 {[%emt 0:00:06]} Rxc3 {[%emt 0:00:26]} 26. Bxf4 {[%emt 0:00:20]} 1-0

[Event "Fagernes Open 2019"]
[Site "Fagernes"]
[Date "2019.04.18"]
[Round "1"]
[White "Yilmaz, Kazim"]
[Black "Loberg, Jo Kristian"]
[Result "1/2-1/2"]
[ECO "B90"]
[WhiteElo "1641"]
[BlackElo "2045"]
[Annotator "NA"]
[PlyCount "124"]
[EventDate "2019.04.14"]
[EventType "swiss"]
[EventCountry "NOR"]
[SourceTitle "playchess.com"]
[Source "ChessBase"]
[SourceQuality "1"]
[TimeControl "40/7200:3600"]

1. e4 {[%emt 0:00:01]} c5 {[%emt 0:00:05]} 2. Nf3 {[%emt 0:00:04]} d6 {[%emt 0:00:07]} 3. Nc3 {[%emt 0:00:02]} Nf6 {[%emt 0:00:14]} 4. d4 {[%emt 0:00:06]} cxd4 {[%emt 0:00:07]} 5. Nxd4 {[%emt 0:00:04]} a6 {[%emt 0:00:21]} 6. Bd3 {[%emt 0:00:10]} g6 {[%emt 0:03:06]} 7. O-O {[%emt 0:00:07]} Bg7 {[%emt 0:00:49]} 8. Nb3 {[%emt 0:00:06]} O-O {[%emt 0:05:25]} 9. Bf4 {[%emt 0:00:05]} Nc6 {[%emt 0:04:31]} 10. Qd2 {[%emt 0:00:08]} Re8 {[%emt 0:11:23]} 11. Bh6 {[%emt 0:00:07]} Bh8 {[%emt 0:00:14]} 12. h3 {[%emt 0:00:06]} d5 {[%emt 0:08:56]} 13. exd5 {[%emt 0:00:10]} Nxd5 {[%emt 0:00:17]} 14. Nxd5 {[%emt 0:00:22]} Qxd5 {[%emt 0:00:11]} 15. c3 {[%emt 0:00:23]} Ne5 {[%emt 0:12:21]} 16. Be2 {[%emt 0:00:15]} Qxd2 {[%emt 0:03:13]} 17. Bxd2 {[%emt 0:00:07]} Be6 {[%emt 0:02:41]} 18. Bf4 {[%emt 0:00:11]} Nc4 {[%emt 0:04:53]} 19. Bxc4 {[%emt 0:00:16]} Bxc4 {[%emt 0:00:05]} 20. Rfd1 {[%emt 0:00:15]} b5 {[%emt 0:15:36]} 21. Be3 {[%emt 0:00:14]} b4 {[%emt 0:06:16]} 22. cxb4 {[%emt 0:00:32]} Bxb2 {[%emt 0:00:06]} 23. Rab1 {[%emt 0:00:10]} Bxb3 {[%emt 0:03:02]} 24. axb3 {[%emt 0:00:07]} Bc3 {[%emt 0:00:11]} 25. Bc5 {[%emt 0:00:25]} Rab8 {[%emt 0:00:45]} 26. Rd7 {[%emt 0:00:42]} Bxb4 {[%emt 0:01:13]} 27. Bxb4 {[%emt 0:00:07]} Rxb4 {[%emt 0:00:04]} 28. Ra7 {[%emt 0:00:11]} Rb6 {[%emt 0:02:29]} 29. Ra1 {[%emt 0:00:10]} Rxb3 {[%emt 0:03:04]} 30. R7xa6 {[%emt 0:00:06]} Rc8 {[%emt 0:01:09]} 31. Ra8 {[%emt 0:00:09]} Rxa8 {[%emt 0:00:13]} 32. Rxa8+ {[%emt 0:00:06]} Kg7 {[%emt 0:00:04]} 33. Ra7 {[%emt 0:00:19]} e6 {[%emt 0:01:33]} 34. g3 {[%emt 0:00:13]} h5 {[%emt 0:00:47]} 35. h4 {[%emt 0:00:11]} Rf3 {[%emt 0:02:12]} 36. Kg2 {[%emt 0:00:12]} Rf5 {[%emt 0:00:12]} 37. Rb7 {[%emt 0:00:18]} Kh6 {[%emt 0:00:33]} 38. Rb8 {[%emt 0:00:14]} f6 {[%emt 0:02:50]} 39. Rb6 {[%emt 0:00:13]} e5 {[%emt 0:03:14]} 40. Ra6 {[%emt 0:00:33]} Kg7 {[%emt 0:03:07]} 41. Ra7+ {[%emt 1:00:10]} Kg8 {[%emt 1:01:43]} 42. Ra8+ {[%emt 0:00:07]} Kf7 {[%emt 0:00:56]} 43. Ra7+ {[%emt 0:00:08]} Ke6 {[%emt 0:00:10]} 44. Rg7 {[%emt 0:00:09]} g5 {[%emt 0:00:56]} 45. hxg5 {[%emt 0:00:06]} fxg5 {[%emt 0:02:15]} 46. f3 {[%emt 0:00:51]} Kd5 {[%emt 0:04:36]} 47. g4 {[%emt 0:00:36]} hxg4 {[%emt 0:00:23]} 48. fxg4 {[%emt 0:00:08]} Rf8 {[%emt 0:00:00]} 49. Rxg5 {[%emt 0:00:00]} Kd4 {[%emt 0:00:00]} 50. Rg7 {[%emt 0:00:00]} e4 {[%emt 0:00:00]} 51. Re7 {[%emt 0:00:00]} Kd3 {[%emt 0:00:00]} 52. Kg3 {[%emt 0:00:00]} e3 {[%emt 0:00:00]} 53. g5 {[%emt 0:00:00]} e2 {[%emt 0:00:00]} 54. Kg4 {[%emt 0:00:00]} Rf1 {[%emt 0:00:00]} 55. g6 {[%emt 0:00:00]} e1=Q {[%emt 0:00:00]} 56. Rxe1 {[%emt 0:00:00]} Rxe1 {[%emt 0:00:00]} 57. Kf5 {[%emt 0:00:00]} Re8 {[%emt 0:00:00]} 58. Kf6 {[%emt 0:00:00]} Ke4 {[%emt 0:00:00]} 59. Kf7 {[%emt 0:00:00]} Ra8 {[%emt 0:00:00]} 60. g7 {[%emt 0:00:00]} Kf5 {[%emt 0:00:00]} 61. g8=Q {[%emt 0:00:00]} Rxg8 {[%emt 0:00:00]} 62. Kxg8 {[%emt 0:00:00]} Ke5 {[%emt 0:00:00]} 1/2-1/2

[Event "Fagernes Open 2019"]
[Site "Fagernes"]
[Date "2019.04.18"]
[Round "1"]
[White "Khoo-Thwe, Louis"]
[Black "Rasmussen, Jonas H"]
[Result "0-1"]
[ECO "C54"]
[WhiteElo "1627"]
[BlackElo "1993"]
[Annotator "NA"]
[PlyCount "118"]
[EventDate "2019.04.14"]
[EventType "swiss"]
[EventCountry "NOR"]
[SourceTitle "playchess.com"]
[Source "ChessBase"]
[SourceQuality "1"]
[TimeControl "40/7200:3600"]

1. e4 {[%emt 0:00:05]} e5 {[%emt 0:00:08]} 2. Nf3 {[%emt 0:00:08]} Nc6 {[%emt 0:00:06]} 3. Bc4 {[%emt 0:00:06]} Bc5 {[%emt 0:00:08]} 4. O-O {[%emt 0:00:08]} Nf6 {[%emt 0:00:12]} 5. d3 {[%emt 0:00:09]} h6 {[%emt 0:02:01]} 6. c3 {[%emt 0:01:09]} d6 {[%emt 0:02:37]} 7. a4 {[%emt 0:01:02]} a6 {[%emt 0:01:02]} 8. b4 {[%emt 0:02:08]} Ba7 {[%emt 0:00:30]} 9. b5 {[%emt 0:00:47]} Na5 {[%emt 0:03:07]} 10. Na3 {[%emt 0:02:19]} Nxc4 {[%emt 0:01:40]} 11. Nxc4 {[%emt 0:00:11]} axb5 {[%emt 0:01:11]} 12. axb5 {[%emt 0:00:12]} Bxf2+ {[%emt 0:00:57]} 13. Rxf2 {[%emt 0:00:31]} Rxa1 {[%emt 0:00:04]} 14. Na3 {[%emt 0:00:05]} Bg4 {[%emt 0:04:09]} 15. Qc2 {[%emt 0:01:23]} Qa8 {[%emt 0:09:11]} 16. Qb2 {[%emt 0:00:39]} Rxc1+ {[%emt 0:00:30]} 17. Qxc1 {[%emt 0:00:08]} Bxf3 {[%emt 0:01:55]} 18. Rxf3 {[%emt 0:00:11]} Qa7+ {[%emt 0:00:14]} 19. Kh1 {[%emt 0:01:41]} O-O {[%emt 0:03:32]} 20. Nc4 {[%emt 0:01:34]} Ra8 {[%emt 0:05:09]} 21. b6 {[%emt 0:02:00]} cxb6 {[%emt 0:08:22]} 22. Nxd6 {[%emt 0:00:52]} Qa1 {[%emt 0:03:16]} 23. Rf1 {[%emt 0:00:16]} Qxc1 {[%emt 0:00:13]} 24. Rxc1 {[%emt 0:00:06]} Rd8 {[%emt 0:00:26]} 25. Nc4 {[%emt 0:01:01]} Rxd3 {[%emt 0:01:19]} 26. Nxe5 {[%emt 0:00:08]} Rd8 {[%emt 0:02:32]} 27. Nc4 {[%emt 0:01:18]} Nxe4 {[%emt 0:01:22]} 28. Nxb6 {[%emt 0:00:24]} Nxc3 {[%emt 0:00:22]} 29. h3 {[%emt 0:01:37]} Rd1+ {[%emt 0:01:33]} 30. Rxd1 {[%emt 0:00:14]} Nxd1 {[%emt 0:00:04]} 31. Kg1 {[%emt 0:00:32]} Kf8 {[%emt 0:02:07]} 32. Nd5 {[%emt 0:01:03]} Ke8 {[%emt 0:01:58]} 33. Kf1 {[%emt 0:00:13]} Kd7 {[%emt 0:00:45]} 34. Ke2 {[%emt 0:00:36]} Kd6 {[%emt 0:00:45]} 35. Nb6 {[%emt 0:01:44]} Nc3+ {[%emt 0:02:29]} 36. Kd3 {[%emt 0:00:15]} Nd5 {[%emt 0:00:58]} 37. Nc4+ {[%emt 0:00:38]} Kc5 {[%emt 0:01:34]} 38. Na5 {[%emt 0:02:27]} b6 {[%emt 0:02:52]} 39. Nb7+ {[%emt 0:00:55]} Kc6 {[%emt 0:02:43]} 40. Nd8+ {[%emt 0:00:14]} Kd7 {[%emt 0:00:36]} 41. Nxf7 {[%emt 1:00:13]} Nf4+ {[%emt 1:00:52]} 42. Kc4 {[%emt 0:01:56]} Nxg2 {[%emt 0:00:38]} 43. Kb5 {[%emt 0:02:05]} Kc7 {[%emt 0:00:09]} 44. Ne5 {[%emt 0:00:23]} Nf4 {[%emt 0:01:42]} 45. h4 {[%emt 0:00:09]} g5 {[%emt 0:01:49]} 46. hxg5 {[%emt 0:04:16]} hxg5 {[%emt 0:00:16]} 47. Kc4 {[%emt 0:01:41]} Nh5 {[%emt 0:14:06]} 48. Kd4 {[%emt 0:01:11]} Nf6 {[%emt 0:00:47]} 49. Nc4 {[%emt 0:01:39]} b5 {[%emt 0:01:07]} 50. Ne3 {[%emt 0:00:55]} Kc6 {[%emt 0:02:54]} 51. Ke5 {[%emt 0:02:22]} b4 {[%emt 0:03:47]} 52. Nc2 {[%emt 0:02:40]} Kc5 {[%emt 0:00:15]} 53. Kxf6 {[%emt 0:08:56]} b3 {[%emt 0:01:11]} 54. Ne1 {[%emt 0:00:50]} g4 {[%emt 0:00:34]} 55. Ke5 {[%emt 0:03:26]} g3 {[%emt 0:01:18]} 56. Nd3+ {[%emt 0:01:38]} Kb5 {[%emt 0:02:03]} 57. Nf4 {[%emt 0:01:32]} b2 {[%emt 0:00:17]} 58. Ne2 {[%emt 0:00:21]} g2 {[%emt 0:00:32]} 59. Nd4+ {[%emt 0:00:59]} Ka6 {[%emt 0:00:50]} 0-1

[Event "Fagernes Open 2019"]
[Site "Fagernes"]
[Date "2019.04.15"]
[Round "2.27"]
[White "Flatebo, Hallvard Haug"]
[Black "Shehzad, Shazil"]
[Result "1/2-1/2"]
[ECO "A57"]
[WhiteElo "1801"]
[BlackElo "2024"]
[Annotator "NA"]
[PlyCount "102"]
[EventDate "2019.04.14"]
[EventType "swiss"]
[EventCountry "NOR"]
[SourceTitle "playchess.com"]
[Source "ChessBase"]
[SourceQuality "1"]
[TimeControl "40/7200:3600"]

1. d4 {[%emt 0:00:03]} Nf6 {[%emt 0:00:11]} 2. c4 {[%emt 0:00:05]} c5 {[%emt 0:00:02]} 3. d5 {[%emt 0:00:05]} b5 {[%emt 0:00:02]} 4. cxb5 {[%emt 0:00:04]} a6 {[%emt 0:00:04]} 5. e3 {[%emt 0:00:10]} axb5 {[%emt 0:00:39]} 6. Bxb5 {[%emt 0:00:21]} Bb7 {[%emt 0:00:00]} 7. Nc3 {[%emt 0:00:00]} Qa5 {[%emt 0:00:00]} 8. Bd2 {[%emt 0:00:00]} Qb6 {[%emt 0:00:00]} 9. a4 {[%emt 0:00:00] A57: Benko/Volga Gambit} Nxd5 {[%emt 0:00:00]} 10. Nf3 {[%emt 0:00:00]} Nxc3 {[%emt 0:00:00]} (10... Qg6 11. O-O e6 12. a5 Nc7 13. e4 Nxb5 14. Nxb5 Na6 15. Re1 f6 16. Nh4 Qf7 17. Qb3 {1-0 (27) Adhiban,B (2650)-Ramirez Alvarez,A (2568) Reykjavik 2018}) 11. Bxc3 {[%emt 0:00:00]} Bc6 $146 {[%emt 0:00:00]} ({Predecessor:} 11... Ba6 12. O-O Bxb5 13. Qb3 e6 14. axb5 Rxa1 15. Rxa1 f6 16. Nd2 d5 {1-0 (43) Farago,I (2500)-Pijpers,A (2338) Deizisau 2012}) 12. Bxc6 {[%emt 0:00:00]} Nxc6 {[%emt 0:00:00]} 13. O-O {[%emt 0:00:00]} d6 {[%emt 0:00:00]} 14. Qd2 {[%emt 0:00:00]} e5 {[%emt 0:00:00]} 15. Qd5 {[%emt 0:00:00]} Be7 {[%emt 0:00:00]} 16. Nd2 {[%emt 0:00:00]} O-O {[%emt 0:00:00]} 17. Nc4 {[%emt 0:00:00]} Qc7 {[%emt 0:00:00]} 18. Rfd1 {[%emt 0:00:00]} Rfd8 {[%emt 0:00:00]} 19. a5 {[%emt 0:00:00]} Bf8 {[%emt 0:00:00]} 20. Qf3 {[%emt 0:00:00]} Rab8 {[%emt 0:00:00]} 21. Nb6 {[%emt 0:00:00]} Ne7 {[%emt 0:00:00]} 22. Nd5 {[%emt 0:00:00]} Nxd5 {[%emt 0:00:00]} 23. Qxd5 {[%emt 0:00:00]} Rdc8 {[%emt 0:00:00]} 24. Qc4 {[%emt 0:00:00]} Qc6 {[%emt 1:59:02]} 25. e4 $14 {[%emt 0:53:09]} Rc7 {[%emt 0:00:00]} 26. g3 {[%emt 0:05:11]} Rcb7 {[%emt 0:00:00]} 27. Rd2 {[%emt 0:04:16]} h5 {[%emt 0:00:00]} 28. Qe2 {[%emt 0:02:26]} g6 {[%emt 0:00:00]} 29. Rad1 {[%emt 0:01:27]} Qc8 {[%emt 0:00:00]} 30. Rd3 {[%emt 0:07:34]} Qe6 {[%emt 0:00:00]} 31. Rf1 {[%emt 0:04:14]} Re8 {[%emt 0:00:00]} 32. Rdd1 {[%emt 0:04:01]} Rd7 {[%emt 0:00:00]} 33. Qf3 {[%emt 0:01:59]} Qc4 {[%emt 0:00:00]} 34. Qd3 {[%emt 0:00:39]} Qb3 {[%emt 0:00:00]} 35. Qd5 {[%emt 0:00:48]} Qc2 {[%emt 0:00:00]} 36. Qc6 {[%emt 0:01:25]} Rdd8 {[%emt 0:00:00]} 37. a6 {[%emt 0:05:45]} Rc8 {[%emt 0:00:00]} 38. Qd5 {[%emt 0:00:24]} Qe2 {[%emt 0:00:00]} 39. Ra1 {[%emt 0:04:59]} Qf3 {[%emt 0:00:00]} 40. Ra3 {[%emt 0:02:13]} Qg4 {[%emt 0:00:00]} 41. Kg2 {[%emt 1:02:29]} Ra8 {[%emt 0:44:19]} 42. f3 {[%emt 0:01:28]} Qd7 {[%emt 0:02:14]} 43. f4 {[%emt 0:02:58]} exf4 {[%emt 0:00:42]} 44. Rxf4 {[%emt 0:00:14]} Qe6 {[%emt 0:01:49]} 45. Kf2 {[%emt 0:05:41]} Ra7 {[%emt 0:03:24]} 46. Qc6 {[%emt 0:03:37]} Rc8 {[%emt 0:02:08]} 47. Qa4 {[%emt 0:01:41]} d5 {[%emt 0:04:41]} 48. exd5 {[%emt 0:00:00]} Qxd5 {[%emt 0:00:00]} 49. Qe4 {[%emt 0:00:00]} Qxe4 {[%emt 0:00:00]} 50. Rxe4 {[%emt 0:00:00]} c4 {[%emt 0:00:43]} 51. Ra4 Rc6 {[%emt 0:00:00]} 1/2-1/2

[Event "Fagernes Open 2019"]
[Site "Fagernes"]
[Date "2019.04.15"]
[Round "2.28"]
[White "Rasmussen, Jonas H"]
[Black "Orban, Tiberiu"]
[Result "1-0"]
[ECO "D79"]
[WhiteElo "1993"]
[BlackElo "1817"]
[Annotator "NA"]
[PlyCount "101"]
[EventDate "2019.04.14"]
[EventType "swiss"]
[EventCountry "NOR"]
[SourceTitle "playchess.com"]
[Source "ChessBase"]
[SourceQuality "1"]
[TimeControl "40/7200:3600"]

1. d4 {[%emt 2:00:00]} d5 2. Nf3 Nf6 3. g3 g6 4. Bg2 Bg7 5. O-O {[%emt 0:00:00]} O-O {[%emt 0:03:41]} 6. c4 {[%emt 0:00:00]} c6 {[%emt 0:04:10]} 7. cxd5 {[%emt 0:00:00]} cxd5 {[%emt 0:00:38]} 8. Ne5 {[%emt 0:00:00]} Nc6 {[%emt 0:02:49]} 9. Nc3 {[%emt 0:00:00]} e6 {[%emt 0:22:44]} 10. Nxc6 {[%emt 0:00:00]} bxc6 {[%emt 0:00:14]} 11. Na4 {[%emt 0:00:00]} Nd7 {[%emt 0:05:08]} 12. Rb1 {[%emt 0:00:00]} Re8 {[%emt 0:17:15]} 13. e4 {[%emt 0:00:00]} Ba6 {[%emt 0:02:27]} 14. Re1 {[%emt 0:00:00]} Rc8 {[%emt 0:04:20]} 15. Be3 {[%emt 0:00:00]} Bf8 {[%emt 0:02:18]} 16. Qd2 {[%emt 0:00:00]} Bb5 {[%emt 0:01:17]} 17. Nc3 {[%emt 0:00:00]} Nb6 {[%emt 0:04:34]} 18. exd5 {[%emt 0:00:00]} Nc4 {[%emt 0:03:30]} 19. Qc1 {[%emt 0:00:00]} Nxe3 {[%emt 0:00:31]} 20. Qxe3 {[%emt 0:00:00]} Bb4 {[%emt 0:03:23]} 21. dxc6 {[%emt 0:00:00]} Bxc6 {[%emt 0:00:59]} 22. Bxc6 {[%emt 0:00:00]} Rxc6 {[%emt 0:00:37]} 23. a3 {[%emt 0:00:00]} Bxc3 {[%emt 0:01:48]} 24. bxc3 {[%emt 0:00:00]} Qd5 {[%emt 0:01:31]} 25. Rec1 {[%emt 0:00:00]} Rec8 {[%emt 0:02:07]} 26. Rc2 {[%emt 0:00:00]} Kg7 {[%emt 0:01:56]} 27. Rbc1 {[%emt 0:00:00]} Qb3 {[%emt 0:03:47]} 28. c4 {[%emt 0:00:00]} Qb8 {[%emt 0:01:23]} 29. Qd3 {[%emt 0:00:00]} Qd6 {[%emt 0:05:06]} 30. Rd2 {[%emt 0:00:00]} R8c7 {[%emt 0:03:03]} 31. Qb3 {[%emt 0:00:00]} Rb6 {[%emt 0:05:05]} 32. Qc3 {[%emt 0:00:00]} Qe7 {[%emt 0:02:36]} 33. d5+ {[%emt 0:00:00]} Qf6 {[%emt 0:01:37]} 34. d6 Qxc3 {[%emt 0:00:00]} 35. Rxc3 Rd7 {[%emt 0:00:00]} 36. c5 Rc6 {[%emt 0:00:00]} 37. Kg2 f6 {[%emt 0:00:00]} 38. Rb2 Kh6 {[%emt 0:00:00]} 39. Rbb3 e5 {[%emt 0:00:00]} 40. a4 f5 {[%emt 0:00:00]} 41. a5 e4 {[%emt 1:00:00]} 42. a6 g5 {[%emt 0:00:00]} 43. Rb7 Rdxd6 {[%emt 0:00:00]} 44. cxd6 Rxc3 {[%emt 0:00:00]} 45. d7 Rd3 {[%emt 0:00:00]} 46. Rxa7 Rd2 {[%emt 0:00:00]} 47. Rb7 e3 {[%emt 0:00:00]} 48. a7 Rxf2+ {[%emt 0:00:00]} 49. Kg1 Rd2 {[%emt 0:00:00]} 50. a8=Q Rd1+ {[%emt 0:00:00]} 51. Kg2 1-0

[Event "Fagernes Open 2019"]
[Site "Fagernes"]
[Date "2019.04.15"]
[Round "2.29"]
[White "Svenske, Jan"]
[Black "Melaa, Sondre"]
[Result "1/2-1/2"]
[ECO "D37"]
[WhiteElo "1781"]
[BlackElo "1991"]
[Annotator "NA"]
[PlyCount "107"]
[EventDate "2019.04.14"]
[EventType "swiss"]
[EventCountry "NOR"]
[SourceTitle "playchess.com"]
[Source "ChessBase"]
[SourceQuality "1"]
[TimeControl "40/7200:3600"]

1. d4 {[%emt 0:00:11]} d5 {[%emt 0:00:11]} 2. c4 {[%emt 0:00:26]} e6 {[%emt 0:00:08]} 3. Nc3 {[%emt 0:00:38]} Nf6 {[%emt 0:00:09]} 4. e3 Be7 {[%emt 0:04:05]} 5. Nf3 {[%emt 0:02:39]} O-O {[%emt 0:01:49]} 6. Bd3 {[%emt 0:00:59]} dxc4 {[%emt 0:03:27]} 7. Bxc4 {[%emt 0:00:11]} a6 {[%emt 0:00:20]} 8. O-O {[%emt 0:01:52]} b5 {[%emt 0:01:38]} 9. Bd3 {[%emt 0:02:02]} c5 {[%emt 0:10:13]} 10. dxc5 {[%emt 0:01:36]} Bxc5 {[%emt 0:02:52]} 11. Qe2 {[%emt 0:03:44]} Qe7 {[%emt 0:05:08]} 12. e4 {[%emt 0:05:50]} e5 {[%emt 0:08:10]} 13. Bg5 {[%emt 0:08:27]} Nbd7 {[%emt 0:01:27]} 14. Nd5 {[%emt 0:04:37]} Qd6 {[%emt 0:01:21]} 15. Rfd1 {[%emt 0:02:20]} Nxd5 {[%emt 0:03:07]} 16. exd5 {[%emt 0:00:20]} f5 {[%emt 0:02:53]} 17. Bc2 {[%emt 0:02:27]} e4 {[%emt 0:04:27]} 18. Nd4 {[%emt 0:02:29]} Ne5 {[%emt 0:07:20]} 19. Rac1 {[%emt 0:12:45]} Bxd4 {[%emt 0:07:33]} 20. Rxd4 {[%emt 0:00:36]} Qg6 {[%emt 0:02:52]} 21. Qe3 {[%emt 0:29:14]} f4 {[%emt 0:27:12]} 22. Qxe4 {[%emt 0:16:59]} Qxg5 {[%emt 0:00:21]} 23. Qxh7+ {[%emt 0:00:13]} Kf7 {[%emt 0:00:05]} 24. Rdd1 {[%emt 0:02:14]} Bg4 {[%emt 0:02:03]} 25. h4 {[%emt 0:05:55]} Qh6 {[%emt 0:04:18]} 26. Re1 {[%emt 0:03:31]} Qxh7 {[%emt 0:06:27]} 27. Bxh7 {[%emt 0:00:12]} Nd7 {[%emt 0:00:31]} 28. f3 {[%emt 0:02:45]} Nf6 {[%emt 0:02:21]} 29. fxg4 {[%emt 0:00:33]} Nxh7 {[%emt 0:00:18]} 30. Rc7+ {[%emt 0:00:25]} Kg6 {[%emt 0:00:22]} 31. Ree7 {[%emt 0:00:25]} Rg8 {[%emt 0:00:39]} 32. Rc6+ {[%emt 0:00:54]} Nf6 {[%emt 0:00:03]} 33. g5 {[%emt 0:00:20]} Rad8 {[%emt 0:01:18]} 34. gxf6 {[%emt 0:00:21]} gxf6 {[%emt 0:00:04]} 35. d6 {[%emt 0:00:16]} Kf5 {[%emt 0:01:02]} 36. d7 {[%emt 0:00:14]} f3 {[%emt 0:00:20]} 37. Rf7 {[%emt 0:00:22]} Rxg2+ {[%emt 0:00:33]} 38. Kf1 {[%emt 0:00:07]} Rd2 {[%emt 0:01:01]} 39. Rcxf6+ {[%emt 0:00:24]} Kg4 {[%emt 0:00:48]} 40. Rxf3 {[%emt 0:00:18]} R8xd7 {[%emt 0:00:45]} 41. Rxd7 {[%emt 0:01:54]} Rxd7 {[%emt 0:01:19]} 42. Rf6 {[%emt 0:00:36]} Rd2 {[%emt 0:00:43]} 43. Rxa6 {[%emt 0:01:32]} Rxb2 {[%emt 0:00:11]} 44. Ke1 {[%emt 0:09:04]} Kxh4 {[%emt 0:00:26]} 45. Kd1 {[%emt 0:00:30]} Kg4 {[%emt 0:00:16]} 46. Kc1 {[%emt 0:00:12]} Rb4 {[%emt 0:00:06]} 47. Kc2 {[%emt 0:03:38]} Kf4 {[%emt 0:00:32]} 48. a3 {[%emt 0:00:44]} Ra4 {[%emt 0:00:33]} 49. Rxa4+ {[%emt 0:01:57]} bxa4 {[%emt 0:00:00]} 50. Kc3 {[%emt 0:00:15]} Ke3 {[%emt 0:00:18]} 51. Kb4 {[%emt 0:00:22]} Kd4 {[%emt 0:00:07]} 52. Kxa4 {[%emt 0:01:08]} Kc4 {[%emt 0:00:10]} 53. Ka5 {[%emt 0:00:19]} Kc5 {[%emt 0:00:08]} 54. Ka6 {[%emt 0:02:16]} 1/2-1/2